bitfinex-derivatives/quotes_ETHF0:USTF0_20250323
["timestamp","ask_amount","ask_price","bid_price","bid_amount"]
[1742744839041,0.99644,2007.6,2007.5,0.99641]
[1742744839239,0.99644,2007.5,2007.4,4.21046]
[1742744839442,0.99642,2007.6,2007.5,0.99639]
[1742744840149,2.35092,2007.6,2007.5,2.32189]
[1742744844949,2.35092,2007.6,2007.3,4.8594731]
[1742744844950,0.99649,2007.4,2007.3,4.8594731]
[1742744845342,0.99649,2007.4,2007.3,3.2152731]
[1742744845547,1.66439,2007.4,2007.3,3.2152731]
[1742744845947,1.66439,2007.4,2007.3,4.2118131]
[1742744846252,3.04129,2007.4,2007.3,4.2118131]
[1742744846647,3.04129,2007.4,2007.3,4.8782131]
[1742744847149,0.99643,2007.6,2007.5,0.99639]
[1742744847552,0.99644,2007.5,2007.4,2.96525]
[1742744847850,0.99644,2007.5,2007.4,1.64165]
[1742744848158,0.99643,2007.6,2007.5,0.99639]
[1742744848452,2.37333,2007.6,2007.5,0.99639]
[1742744848857,2.37333,2007.6,2007.5,1.4119]
[1742744849242,2.37333,2007.6,2007.5,2.40834]
[1742744849841,0.99638,2007.7,2007.5,1.4119]
[1742744850045,0.0074731,2007.8,2007.7,0.99634]
[1742744850252,0.0074731,2007.8,2007.7,4.21034]
[1742744851044,0.0074731,2007.8,2007.7,5.62224]
[1742744851247,3.2078,2008.0,2007.9,0.99624]
[1742744851466,3.2078,2008.0,2007.9,4.21024]
[1742744851755,4.20399,2008.0,2007.9,4.21024]
[1742744851957,6.21149,2008.0,2007.9,5.51854]
[1742744852850,6.21149,2008.0,2007.9,6.20274]
[1742744853855,0.99629,2007.9,2007.6,5.69877]
[1742744854058,0.99634,2007.8,2007.7,5.5186]
[1742744854259,0.99634,2007.8,2007.7,3.5223]
[1742744854460,2.31374,2007.8,2007.7,3.214]
[1742744855163,2.31374,2007.8,2007.7,4.21034]
[1742744857063,2.31374,2007.8,2007.7,0.99634]
[1742744858161,2.31374,2007.8,2007.7,2.35934]
[1742744858558,1.3174,2007.8,2007.7,2.35934]
[1742744859068,3.2078,2008.0,2007.9,0.99624]
[1742744859361,0.0074731,2008.2,2008.1,0.99614]
[1742744859560,0.99593,2008.6,2008.5,0.99594]
[1742744860364,0.99594,2008.5,2008.4,3.9064]
[1742744860661,2.34654,2008.5,2008.4,4.90239]
[1742744860867,2.34654,2008.5,2008.4,3.9064]
[1742744861465,2.34654,2008.5,2008.4,4.90239]
[1742744863865,0.99594,2008.5,2008.4,4.90239]
[1742744864071,0.99594,2008.5,2008.4,5.57269]
[1742744864362,0.99594,2008.5,2008.4,4.5757]
[1742744864563,0.99594,2008.5,2008.4,3.213]
[1742744864866,0.99604,2008.3,2008.2,1.6496331]
[1742744865058,0.99604,2008.3,2008.2,3.8665731]
[1742744865263,0.99604,2008.3,2008.2,4.2165631]
[1742744865457,0.99604,2008.3,2008.2,6.2188631]
[1742744867471,0.99604,2008.3,2008.2,5.2227731]
[1742744867670,1.63984,2008.3,2008.2,5.2227731]
[1742744867965,1.63984,2008.3,2008.2,0.0074731]
[1742744868164,0.99619,2008.0,2007.9,3.213]
[1742744868365,0.99619,2008.0,2007.9,4.20924]
[1742744868968,2.34379,2008.0,2007.9,4.20924]
[1742744869170,0.99624,2007.9,2007.8,5.61306]
[1742744869362,2.98764,2007.9,2007.8,5.61306]
[1742744869561,2.98764,2007.9,2007.8,3.213]
[1742744869972,0.99629,2007.8,2007.7,3.2152731]
[1742744870268,2.29249,2007.8,2007.7,0.0074731]
[1742744875365,2.29249,2007.8,2007.7,1.0038131]
[1742744875571,2.29249,2007.8,2007.7,0.0074731]
[1742744888685,5.50549,2007.8,2007.7,0.0074731]
[1742744888884,0.99644,2007.5,2007.4,1.2742]
[1742744889181,0.99644,2007.5,2007.4,2.27069]
[1742744889382,0.99644,2007.5,2007.4,1.2742]
[1742744889778,2.39064,2007.5,2007.4,1.2742]
[1742744889979,2.39064,2007.5,2007.4,2.27069]
[1742744892291,0.99654,2007.4,2007.3,0.99651]
[1742744892586,2.29484,2007.4,2007.3,2.97491]
[1742744895193,2.29484,2007.4,2007.3,1.9784]
[1742744896684,0.99654,2007.3,2007.2,0.0074731]
[1742744896883,3.66634,2007.3,2007.2,0.0074731]
[1742744897090,3.66634,2007.3,2007.2,1.3225731]
[1742744897490,3.66634,2007.3,2007.2,0.0074731]
[1742744897689,6.87414,2007.3,2007.2,0.0074731]
[1742744902388,9.37414,2007.3,2007.2,0.0074731]
[1742744902589,9.37414,2007.3,2006.9,3.2078]
[1742744902590,0.99669,2007.0,2006.9,3.2078]
[1742744903294,0.99669,2007.0,2006.9,4.6005]
[1742744904798,0.99669,2007.0,2006.9,1.3927]
[1742744904997,1.64909,2007.0,2006.9,1.3927]
[1742744908200,4.85689,2007.0,2006.9,1.3927]
[1742744910002,4.20449,2007.0,2006.9,2.38944]
[1742744910799,0.99669,2007.0,2006.9,2.38944]
[1742744911099,2.36417,2007.1,2007.0,0.99669]
[1742744911300,2.36417,2007.1,2007.0,3.00309]
[1742744911805,0.99667,2007.1,2007.0,3.00309]
[1742744912103,0.99667,2007.1,2007.0,3.69819]
[1742744912294,1.2978,2007.2,2007.1,0.99664]
[1742744912608,3.2078,2007.3,2007.2,0.99659]
[1742744912801,4.20434,2007.3,2007.2,0.99659]
[1742744913504,5.57594,2007.3,2007.2,0.99659]
[1742744914197,5.944,2007.4,2007.2,4.21059]
[1742744914398,0.0074731,2007.7,2007.4,2.49117]
[1742744914609,0.0074731,2007.7,2007.6,0.99639]
[1742744915105,0.0074731,2007.7,2007.6,2.40039]
[1742744916799,1.2809731,2007.7,2007.6,2.40039]
[1742744918901,0.0074731,2007.7,2007.6,3.07469]
[1742744920811,1.0038131,2007.7,2007.6,3.07469]
[1742744922398,1.0038131,2007.7,2007.6,2.0783]
[1742744922604,1.0038131,2007.7,2007.6,3.07469]
[1742744922810,1.0038131,2007.7,2007.6,2.0783]
[1742744923409,1.0038131,2007.7,2007.6,5.2913]
[1742744923902,0.99639,2007.6,2007.5,3.2078]
[1742744924104,3.72179,2007.6,2007.5,3.2078]
[1742744924507,0.99644,2007.5,2007.4,1.4069]
[1742744924704,0.99654,2007.3,2007.2,5.59035]
[1742744925004,0.99654,2007.3,2007.2,3.906]
[1742744925205,0.99654,2007.3,2007.2,3.213]
[1742744925403,0.99659,2007.2,2007.1,1.2823]
[1742744925609,0.99664,2007.1,2007.0,4.90266]
[1742744925810,0.99664,2007.1,2007.0,2.97196]
[1742744926012,2.38904,2007.1,2007.0,1.9753]
[1742744926811,2.38904,2007.1,2007.0,2.97199]
[1742744927212,1.3924,2007.1,2007.0,2.97199]
[1742744928007,2.38904,2007.1,2007.0,2.97199]
[1742744928206,1.3924,2007.1,2007.0,2.97199]
[1742744929214,2.38904,2007.1,2007.0,2.97199]
[1742744929421,1.3924,2007.1,2007.0,2.97199]
[1742744929716,2.38904,2007.1,2007.0,2.97199]
[1742744930317,0.9966,2007.2,2007.1,0.99659]
[1742744930516,2.3307,2007.2,2007.1,2.30429]
[1742744932422,2.3307,2007.2,2007.1,1.3077]
[1742744932720,2.3307,2007.2,2007.1,2.30434]
[1742744933110,0.99664,2007.1,2007.0,1.68965]
[1742744933310,2.0133,2007.1,2007.0,1.68965]
[1742744933519,2.32584,2007.1,2007.0,3.06685]
[1742744933715,1.3292,2007.1,2007.0,3.06685]
[1742744934617,0.6841,2007.5,2007.4,0.99649]
[1742744934815,0.0074731,2007.7,2007.3,5.70427]
[1742744935016,0.0074731,2007.7,2007.6,0.99639]
[1742744935915,0.0074731,2007.7,2007.6,2.27269]
[1742744936418,3.213,2008.3,2007.8,2.49068]
[1742744936617,0.99624,2008.0,2007.9,0.99624]
[1742744937115,0.99624,2007.9,2007.8,4.20925]
[1742744937718,0.99624,2007.9,2007.8,5.52375]
[1742744938924,0.99624,2007.9,2007.8,4.20925]
[1742744939326,0.99624,2007.9,2007.8,3.213]
[1742744940087,0.99624,2007.9,2007.8,4.20929]
[1742744942124,2.32949,2008.0,2007.9,0.99624]
[1742744942327,1.3333,2008.0,2007.9,0.99624]
[1742744942516,1.3333,2008.0,2007.9,2.40954]
[1742744942918,1.3333,2008.0,2007.9,3.09184]
[1742744944730,2.32949,2008.0,2007.9,3.09184]
[1742744945228,2.32953,2008.0,2007.9,0.99624]
[1742744945528,2.32953,2008.0,2007.9,2.35644]
[1742744945924,1.3333,2008.0,2007.9,2.35644]
[1742744947023,2.32949,2008.0,2007.9,2.35644]
[1742744947227,2.32949,2008.0,2007.9,0.99624]
[1742744948227,0.99624,2007.9,2007.8,6.19574]
[1742744948430,2.98094,2007.9,2007.8,9.40774]
[1742744950223,2.98094,2007.9,2007.8,5.1995]
[1742744950425,0.99629,2007.8,2007.7,0.99632]
[1742744950632,0.99634,2007.7,2007.6,2.3501231]
[1742744950826,0.6884,2007.7,2007.6,2.3501231]
[1742744951034,2.40683,2007.8,2007.7,0.99634]
[1742744951223,0.99633,2007.8,2007.7,2.34264]
[1742744951921,1.3784,2007.9,2007.8,0.99629]
[1742744952119,0.99624,2007.9,2007.8,2.32019]
[1742744952429,0.99624,2007.9,2007.8,3.02369]
[1742744954327,0.99623,2008.0,2007.9,0.99619]
[1742744954532,0.99623,2008.0,2007.9,2.32009]
[1742744954730,0.0074731,2008.1,2008.0,0.99619]
[1742744954930,5.944,2008.7,2008.0,1.9827]
[1742744954931,0.99592,2008.6,2008.0,1.9827]
[1742744955233,0.99592,2008.6,2008.5,0.99594]
[1742744955234,2.33972,2008.6,2008.5,0.99594]
[1742744955437,0.99598,2008.5,2008.4,0.99595]
[1742744955638,0.99598,2008.5,2008.4,2.29485]
[1742744955934,0.99598,2008.5,2008.4,1.2989]
[1742744956838,0.99599,2008.4,2008.3,3.212]
[1742744957533,0.99609,2008.2,2008.1,7.41589]
[1742744958836,0.99609,2008.2,2008.1,4.20809]
[1742744959431,1.68049,2008.2,2008.1,4.20809]
[1742744963537,0.99609,2008.2,2008.1,4.87969]
[1742744963740,0.7015,2008.5,2008.4,0.99599]
[1742744964042,1.69744,2008.5,2008.4,0.99599]
[1742744964544,1.69744,2008.5,2008.4,3.01629]
[1742744965527,0.99594,2008.5,2008.4,3.01629]
[1742744965735,0.99594,2008.5,2008.4,2.0203]
[1742744966645,0.99594,2008.5,2008.4,0.6535]
[1742744966841,0.99599,2008.4,2008.3,4.20801]
[1742744967042,0.99599,2008.4,2008.3,5.57481]
[1742744968641,2.48989,2008.5,2008.1,3.856]
[1742744968846,0.6959,2008.6,2008.1,4.20811]
[1742744968847,0.99609,2008.2,2008.1,4.20811]
[1742744970941,0.99608,2008.3,2008.2,0.99604]
[1742744971240,0.99608,2008.3,2008.2,2.32984]
[1742744971441,0.99608,2008.3,2008.2,3.03354]
[1742744972851,1.3471,2008.4,2008.3,0.99604]
[1742744973052,1.3471,2008.4,2008.3,5.55484]
[1742744974452,1.3101,2008.6,2008.3,5.55484]
[1742744974453,0.0074731,2008.7,2008.4,0.99599]
[1742744974650,0.0074731,2008.7,2008.6,4.20369]
[1742744974842,0.0074731,2008.7,2008.6,6.13579]
[1742744975048,0.0074731,2008.7,2008.6,46.93579]
[1742744977955,0.0074731,2008.7,2008.6,6.13579]
[1742744983051,0.9701076,2009.0,2008.9,0.99574]
[1742744983257,0.9701076,2009.0,2008.9,7.42654]
[1742744983659,0.9701076,2009.0,2008.9,48.22654]
[1742744983858,0.9701076,2009.0,2008.9,7.42654]
[1742744984763,0.9701076,2009.0,2008.9,48.22654]
[1742744985164,0.9701076,2009.0,2008.9,7.42654]
[1742744986066,0.9701076,2009.0,2008.9,8.81524]
[1742744986262,0.9701076,2009.0,2008.9,9.49514]
[1742744987558,0.9701076,2009.0,2008.9,50.29514]
[1742744987957,0.9701076,2009.0,2008.9,9.49514]
[1742744993475,2.3071076,2009.0,2008.9,9.49514]
[1742745000376,2.3071076,2009.0,2008.9,7.42654]
[1742745000576,3.3027976,2009.0,2008.9,4.20354]
[1742745000875,3.3027976,2009.0,2008.9,7.41354]
[1742745002173,2.3071076,2009.0,2008.9,7.41354]
[1742745002375,3.3027976,2009.0,2008.9,7.41354]
[1742745002575,2.3071076,2009.0,2008.9,7.41354]
[1742745002776,3.3027976,2009.0,2008.9,7.41354]
[1742745002976,2.3071076,2009.0,2008.9,7.41354]
[1742745003274,3.3027976,2009.0,2008.9,7.41354]
[1742745003864,2.3071076,2009.0,2008.9,7.41354]
[1742745004068,3.3027976,2009.0,2008.9,7.41354]
[1742745007570,0.99574,2008.9,2008.8,0.99575]
[1742745007765,0.99579,2008.8,2008.7,4.2132731]
[1742745008265,2.29629,2008.8,2008.7,1.0032731]
[1742745008471,1.3005,2008.8,2008.7,4.2132731]
[1742745010072,2.29629,2008.8,2008.7,4.2132731]
[1742745010271,2.29629,2008.8,2008.7,4.2133131]
[1742745010581,2.29629,2008.8,2008.7,0.0074731]
[1742745010769,1.3005,2008.8,2008.3,3.2078]
[1742745010973,0.99599,2008.4,2008.3,3.2078]
[1742745011275,0.99604,2008.3,2008.2,0.99605]
[1742745011475,2.28654,2008.3,2008.2,4.20605]
[1742745012175,2.28654,2008.3,2008.2,3.21]
[1742745012678,0.99609,2008.2,2008.1,4.20713]
[1742745012869,2.28659,2008.2,2008.1,4.20713]
[1742745014581,2.28659,2008.2,2008.1,5.55383]
[1742745015886,2.28659,2008.2,2008.1,3.211]
[1742745016786,2.28659,2008.2,2008.1,4.20714]
[1742745017288,1.2905,2008.2,2008.1,4.20714]
[1742745017584,1.2905,2008.2,2008.1,5.54434]
[1742745018991,2.28659,2008.2,2008.1,5.54434]
[1742745019188,0.6483,2008.4,2008.1,4.5482]
[1742745019391,2.32944,2008.3,2008.2,2.29029]
[1742745019690,2.32944,2008.3,2008.2,1.9531]
[1742745019989,0.99611,2008.2,2008.1,0.99614]
[1742745020185,0.99611,2008.2,2008.1,3.8988]
[1742745020389,0.99611,2008.2,2008.1,3.212]
[1742745021278,0.99611,2008.2,2008.1,4.5062]
[1742745022590,1.68621,2008.2,2008.1,4.5062]
[1742745027494,1.68621,2008.2,2008.1,5.50234]
[1742745028096,2.32946,2008.3,2008.2,0.99609]
[1742745028397,1.3334,2008.3,2008.2,2.30879]
[1742745028605,2.32944,2008.3,2008.2,3.00549]
[1742745032198,1.3334,2008.3,2008.2,3.00549]
[1742745033494,2.32944,2008.3,2008.2,3.00549]
[1742745034289,0.99614,2008.1,2008.0,3.8741731]
[1742745034595,0.99614,2008.1,2008.0,8.0943231]
[1742745034993,0.99614,2008.1,2008.0,9.4507231]
[1742745035396,2.34183,2008.2,2008.1,0.99614]
[1742745035596,2.34183,2008.2,2008.1,1.3564]
[1742745035789,2.34183,2008.2,2008.1,2.35254]
[1742745036701,2.34179,2008.2,2008.1,2.35254]
[1742745037001,1.3457,2008.2,2008.1,2.35254]
[1742745037801,2.34179,2008.2,2008.1,2.35254]
[1742745038397,1.3457,2008.2,2008.1,2.35254]
[1742745038699,2.34179,2008.2,2008.1,2.35254]
[1742745039995,2.34179,2008.2,2008.1,1.3564]
[1742745040201,0.99614,2008.1,2008.0,8.0943231]
[1742745040505,2.96134,2008.1,2008.0,9.4882231]
[1742745041604,2.27084,2008.1,2008.0,9.4882231]
[1742745047808,2.27084,2008.1,2008.0,6.2804231]
[1742745048206,2.27084,2008.1,2008.0,9.4882231]
[1742745048407,2.27084,2008.1,2008.0,8.4920731]
[1742745049306,2.27084,2008.1,2008.0,9.4882631]
[1742745051610,2.27084,2008.1,2008.0,4.2114631]
[1742745051812,0.99629,2007.8,2007.7,3.2078]
[1742745052017,0.99629,2007.8,2007.7,5.49054]
[1742745052205,0.99629,2007.8,2007.7,5.4905]
[1742745054913,0.99629,2007.8,2007.7,8.7045]
[1742745055309,1.3879,2007.9,2007.8,0.99629]
[1742745055526,0.0074731,2008.0,2007.9,0.99624]
[1742745055713,0.0074731,2008.0,2007.9,5.53584]
[1742745058809,1.2969731,2008.0,2007.9,5.53584]
[1742745061621,2.2931631,2008.0,2007.9,4.85504]
[1742745061819,0.99624,2007.9,2007.7,3.2078]
[1742745062021,3.06954,2007.9,2007.8,3.212]
[1742745062625,0.99629,2007.8,2007.7,5.48204]
[1742745062924,1.401,2007.8,2007.7,8.69704]
[1742745067621,2.39729,2007.8,2007.7,8.69704]
[1742745069324,1.401,2007.8,2007.7,8.69704]
[1742745069717,2.39729,2007.8,2007.7,8.69704]
[1742745069924,1.401,2007.8,2007.7,8.69704]
[1742745071724,1.0037031,2008.0,2007.7,8.69704]
[1742745071725,0.0074731,2008.0,2007.7,7.7007]
[1742745071925,1.3218,2007.9,2007.8,3.03989]
[1742745072122,1.3218,2007.9,2007.8,6.25189]
[1742745075033,3.00594,2007.9,2007.8,6.25189]
[1742745075335,3.00594,2007.9,2007.8,3.212]
[1742745075524,3.00594,2007.9,2007.8,4.20829]
[1742745076732,3.00594,2007.9,2007.8,5.52289]
[1742745079437,3.00594,2007.9,2007.8,8.73069]
[1742745080925,2.0097,2007.9,2007.8,8.73069]
[1742745081434,3.00594,2007.9,2007.8,8.73069]
[1742745081634,2.0097,2007.9,2007.8,8.73069]
[1742745081830,1.3218,2007.9,2007.8,8.73069]
[1742745091744,1.3218,2007.9,2007.8,9.39699]
[1742745093343,2.31804,2007.9,2007.8,8.73069]
[1742745093646,2.31804,2007.9,2007.8,3.212]
[1742745094640,0.99634,2007.7,2007.6,2.40785]
[1742745094841,0.99634,2007.7,2007.6,0.99635]
[1742745095150,0.99634,2007.7,2007.6,4.20835]
[1742745095343,2.27244,2007.7,2007.6,4.20835]
[1742745096439,2.27244,2007.7,2007.6,5.49875]
[1742745096950,1.2761,2007.7,2007.6,5.49875]
[1742745097146,1.2761,2007.7,2007.6,6.15735]
[1742745098554,2.27244,2007.7,2007.6,5.49875]
[1742745098752,3.57224,2007.7,2007.6,5.49875]
[1742745099351,2.5759,2007.7,2007.6,5.49879]
[1742745099752,3.57224,2007.7,2007.6,5.49879]
[1742745101547,3.57224,2007.7,2007.6,4.5024]
[1742745101747,3.57224,2007.7,2007.6,5.49879]
[1742745102554,3.57224,2007.7,2007.6,4.5024]
[1742745102754,3.57224,2007.7,2007.6,3.212]
[1742745104249,3.57224,2007.7,2007.6,4.20839]
[1742745104653,3.57224,2007.7,2007.6,5.56359]
[1742745104957,3.57224,2007.7,2007.6,3.212]
[1742745105558,3.57224,2007.7,2007.6,4.5672]
[1742745105754,3.57224,2007.7,2007.6,5.56359]
[1742745108257,3.57224,2007.7,2007.6,4.5672]
[1742745109357,3.57224,2007.7,2007.6,5.56359]
[1742745117656,2.5759,2007.7,2007.6,5.56359]
[1742745117962,3.57224,2007.7,2007.6,5.56359]
[1742745118756,1.2761,2007.7,2007.6,5.56359]
[1742745118953,1.341,2007.9,2007.8,0.99629]
[1742745119154,0.0074731,2008.0,2007.9,0.99624]
[1742745119464,0.0074731,2008.0,2007.9,2.40414]
[1742745119958,2.3323631,2008.0,2007.9,2.40414]
[1742745120180,1.3361731,2008.0,2007.9,2.40414]
[1742745124064,0.0074731,2008.0,2007.9,2.40414]
[1742745127866,0.0074731,2008.0,2007.9,4.90414]
[1742745129464,1.3719,2008.6,2008.5,0.99594]
[1742745129764,2.36784,2008.6,2008.4,7.41476]
[1742745129964,1.3719,2008.6,2008.4,7.41476]
[1742745130168,0.99594,2008.5,2008.4,7.41476]
[1742745130766,2.37284,2008.5,2008.4,3.211]
[1742745131070,0.99599,2008.4,2008.3,1.67321]
[1742745131271,2.37289,2008.4,2008.3,3.211]
[1742745132780,1.3769,2008.4,2008.3,4.20704]
[1742745133074,12.13142492,2008.7,2008.6,0.99589]
[1742745133569,13.12726492,2008.7,2008.6,0.99589]
[1742745133769,12.13142492,2008.7,2008.6,1.67179]
[1742745134272,0.0074731,2008.7,2008.6,1.67179]
[1742745134569,0.0074731,2008.7,2008.6,2.98679]
[1742745134774,0.0074731,2008.7,2008.6,44.18972739]
[1742745145775,0.0074731,2008.7,2008.6,43.78679]
[1742745145981,1.0033131,2008.7,2008.6,3.21]
[1742745146484,2.3449131,2008.7,2008.6,3.21]
[1742745146781,2.3449131,2008.7,2008.6,4.20589]
[1742745147177,1.3490731,2008.7,2008.6,4.20589]
[1742745148277,2.3449131,2008.7,2008.6,4.20589]
[1742745148477,2.3449131,2008.7,2008.6,3.21]
[1742745148678,1.3490731,2008.7,2008.6,4.20589]
[1742745151184,2.3449131,2008.7,2008.6,4.20589]
[1742745154688,2.3449131,2008.7,2008.6,3.21]
[1742745155576,2.3449131,2008.7,2008.5,0.9959]
[1742745155577,0.99589,2008.6,2008.5,0.9959]
[1742745155782,2.97439,2008.6,2008.5,4.2059]
[1742745156080,1.9785,2008.6,2008.5,4.2059]
[1742745156280,1.9785,2008.6,2008.5,5.6021]
[1742745158383,1.3188,2008.6,2008.5,5.6021]
[1742745158584,1.3188,2008.6,2008.5,6.245]
[1742745163894,1.3188,2008.6,2008.5,9.4528]
[1742745176500,2.31469,2008.6,2008.5,7.4137]
[1742745177303,1.3188,2008.6,2008.5,7.4137]
[1742745177898,1.3188,2008.6,2008.5,9.469]
[1742745188325,1.3188,2008.6,2008.5,8.7678]
[1742745189832,2.31469,2008.6,2008.5,6.4168]
[1742745190233,1.3188,2008.6,2008.5,7.41274]
[1742745193727,1.3188,2008.6,2008.5,9.51974]
[1742745201339,0.0074731,2008.7,2008.6,0.99589]
[1742745201544,0.0074731,2008.7,2008.6,2.29309]
[1742745202238,0.9701076,2009.0,2008.9,0.99574]
[1742745202433,0.9701076,2009.0,2008.9,7.41254]
[1742745203037,0.9701076,2009.0,2008.9,8.79044]
[1742745203638,0.5698076,2009.0,2008.9,8.79044]
[1742745205537,0.5698076,2009.0,2008.9,5.58144]
[1742745205740,1.9077076,2009.0,2008.9,8.79044]
[1742745206138,4.2496976,2009.0,2008.9,8.79044]
[1742745206339,3.2540076,2009.0,2008.9,8.79044]
[1742745206640,3.2540076,2009.0,2008.9,7.41254]
[1742745208341,0.5698076,2009.0,2008.9,8.78184]
[1742745209345,1.2585076,2009.0,2008.9,8.78184]
[1742745210253,0.5698076,2009.0,2008.9,8.78184]
[1742745212444,1e-08,2009.0,2008.9,8.78184]
[1742745214551,1e-08,2009.0,2008.9,5.57284]
[1742745214754,1e-08,2009.0,2008.9,8.78084]
[1742745214949,1.32850001,2009.0,2008.9,8.78084]
[1742745215347,1.99580001,2009.0,2008.9,8.78084]
[1742745215958,1e-08,2009.0,2008.9,8.78084]
[1742745223564,1.33550001,2009.0,2008.9,8.78084]
[1742745226155,0.66570001,2009.0,2008.9,8.78084]
[1742745227060,0.66570001,2009.0,2008.9,8.77984]
[1742745227262,0.66570001,2009.0,2008.9,5.57284]
[1742745227464,0.66570001,2009.0,2008.9,8.77984]
[1742745228067,1.34840001,2009.0,2008.9,8.77984]
[1742745236078,1e-08,2009.0,2008.9,8.77984]
[1742745236675,1e-08,2009.0,2008.9,49.57984]
[1742745241267,1e-08,2009.0,2008.9,48.21054]
[1742745241468,1e-08,2009.0,2008.9,49.55244]
[1742745243284,0.0074731,2009.2,2009.1,0.99564]
[1742745243483,0.0074731,2009.2,2009.1,6.22674]
[1742745243677,0.0074731,2009.2,2009.1,6.92134]
[1742745243883,0.0074731,2009.2,2009.1,47.72134]
[1742745245575,0.0074731,2009.2,2009.1,48.09568452]
[1742745245977,0.0074731,2009.2,2009.1,46.71688452]
[1742745246283,0.0074731,2009.2,2009.1,46.34254]
[1742745246486,1.3335731,2009.2,2009.1,46.34254]
[1742745246685,2.3291731,2009.2,2009.1,44.007]
[1742745246879,2.3291731,2009.2,2009.1,3.207]
[1742745248982,2.3291731,2009.2,2008.9,45.00351]
[1742745248983,0.99569,2009.1,2008.9,45.00351]
[1742745249186,2.31179,2009.0,2008.9,44.0078]
[1742745249389,1.3161,2009.0,2008.9,48.21054]
[1742745249589,2.31179,2009.0,2008.9,48.6007]
[1742745249887,2.31179,2009.0,2008.9,3.2078]
[1742745250083,2.31179,2009.0,2008.9,6.4148]
[1742745251291,1.3161,2009.0,2008.9,8.74814]
[1742745255093,1.3161,2009.0,2008.9,7.7524]
[1742745255296,2.31179,2009.0,2008.9,7.7524]
[1742745256893,2.31179,2009.0,2008.9,6.4148]
[1742745257289,2.31179,2009.0,2008.9,3.207]
[1742745259494,2.31179,2009.0,2008.9,4.5191]
[1742745259884,0.99579,2008.8,2008.7,0.0074731]
[1742745260090,0.99579,2008.8,2008.7,3.2144731]
[1742745260598,2.37609,2008.8,2008.7,3.2144731]
[1742745260787,2.37609,2008.8,2008.7,4.2103131]
[1742745260987,2.37609,2008.8,2008.7,5.4994131]
[1742745261789,2.37609,2008.8,2008.7,4.5035731]
[1742745265494,2.37609,2008.8,2008.7,1.2965731]
[1742745265797,2.48962,2008.7,2008.5,3.207]
[1742745265993,0.99589,2008.6,2008.5,3.207]
[1742745266194,3.86334,2008.6,2008.4,3.207]
[1742745266395,5.53754,2008.5,2008.4,3.207]
[1742745266698,3.63434,2008.5,2008.4,44.007]
[1742745267001,3.63434,2008.5,2008.4,3.207]
[1742745267002,6.84214,2008.5,2008.4,3.207]
[1742745267193,0.99604,2008.3,2008.2,1.2860731]
[1742745267392,0.99604,2008.3,2008.2,3.2144731]
[1742745267587,0.99604,2008.3,2008.2,0.0074731]
[1742745270501,0.99619,2008.0,2007.9,5.60954]
[1742745270701,0.99619,2008.0,2007.9,4.6133]
[1742745270897,0.99619,2008.0,2007.9,5.60954]
[1742745271091,0.99619,2008.0,2007.9,4.6133]
[1742745271299,2.40859,2008.0,2007.9,3.207]
[1742745271798,0.99624,2007.9,2007.8,1.4063]
[1742745272004,3.10074,2007.9,2007.8,4.6133]
[1742745274401,3.10074,2007.9,2007.8,5.60959]
[1742745274597,3.10074,2007.9,2007.8,4.6133]
[1742745275090,3.10074,2007.9,2007.8,5.60959]
[1742745275298,3.2152731,2008.2,2007.9,2.49058]
[1742745275497,3.2152731,2008.2,2008.1,0.99614]
[1742745275498,0.0074731,2008.2,2008.1,0.99614]
[1742745275803,0.0074731,2008.2,2008.1,2.99174]
[1742745276298,0.0074731,2008.2,2008.1,43.79174]
[1742745283808,1.0035631,2008.2,2008.1,43.79174]
[1742745284110,2.3875631,2008.2,2008.1,43.79174]
[1742745284811,1.3914731,2008.2,2008.1,2.99174]
[1742745291812,0.0074731,2008.2,2008.1,2.99174]
[1742745292714,1.4136731,2008.2,2008.1,2.99174]
[1742745294019,0.0074731,2008.2,2008.1,2.99174]
[1742745297218,1.3712731,2008.2,2008.1,2.99174]
[1742745301817,2.0202731,2008.2,2008.1,2.99174]
[1742745307024,2.6607731,2008.2,2008.1,2.99174]
[1742745308625,3.6568631,2008.2,2008.1,1.9956]
[1742745308827,2.6607731,2008.2,2008.1,2.99174]
[1742745309329,3.6568631,2008.2,2008.1,2.99174]
[1742745309528,2.6607731,2008.2,2008.1,2.99174]
[1742745309925,3.6568631,2008.2,2008.1,2.32814]
[1742745310128,0.99628,2007.9,2007.7,3.2152731]
[1742745310327,0.99624,2007.9,2007.8,4.5898]
[1742745311334,0.99624,2007.9,2007.8,3.207]
[1742745312728,0.99624,2007.9,2007.8,4.5039]
[1742745316235,0.99624,2007.9,2007.8,5.50019]
[1742745316428,0.99624,2007.9,2007.8,4.5039]
[1742745318429,4.5047731,2008.2,2007.8,4.5039]
[1742745318728,4.5047731,2008.2,2008.1,0.99614]
[1742745318931,4.5047731,2008.2,2008.0,4.20415]
[1742745318932,2.2930631,2008.2,2008.0,4.20415]
[1742745319233,2.2930631,2008.2,2008.1,0.99614]
[1742745319536,2.2930631,2008.2,2008.1,2.30174]
[1742745320225,2.2930631,2008.2,2008.1,1.3056]
[1742745321338,2.2930631,2008.2,2008.1,2.30174]
[1742745324235,1.0035631,2008.2,2008.1,2.30174]
[1742745324437,0.0074731,2008.2,2008.1,2.30174]
[1742745324643,1.3647,2008.6,2008.3,2.49009]
[1742745324833,2.36059,2008.6,2008.5,0.99594]
[1742745325033,0.99594,2008.5,2008.4,6.20316]
[1742745325333,0.99594,2008.5,2008.4,3.207]
[1742745326844,0.99594,2008.5,2008.4,4.5637]
[1742745328342,0.99594,2008.5,2008.4,3.207]